Cogmind - Beta 9.1 *** ADVENTURER MODE // 2019.11.05 @ 00:07:23 Player: Demise Result: Destroyed by P-70 Sage with Tesla Rifle Performance ------------- Evolutions (5) 2500 Regions Visited (15) 3000 Robots Destroyed (106) 530 Value Destroyed (5071) 5071 Prototype IDs (33) 660 Alien Tech Used (0) 0 Bonus (4941) 4941 TOTAL SCORE: 16702 Bonus ------- High Alert Combat Kills 72 Follower Combat Kills 429 Entered Garrisons 400 Used RIF Installer 1000 Aligned with FarCom 300 MAIN.C Attacked Warlord 500 Warlord Defense Kill 2332 Friendly Fire -92 Cogmind --------- Core Integrity 0/1000 Matter 450/450 Energy 170/170 System Corruption 14% Temperature Cool (0) Location -4/Proximity Caves Parts ------- Power (2) Micro Fission Core Propulsion (4) Utility (8) Advanced Heat Sink Advanced Heat Sink Large Storage Unit Large Storage Unit High-capacity Storage Unit Large Matter Pod Advanced Targeting Computer Improved Medium Armor Plating Weapon (3) Inventory (24) Makeshift Terrain Scanner Improved Maneuvering Thrusters System Shield Advanced System Shield Relay Coupler [NC] (37) Relay Coupler [Swarmer] (54) Relay Coupler [Swarmer] (42) Relay Coupler [Brawler] (39) Relay Coupler [Sentry] (29) Relay Coupler [Sentry] (29) Relay Coupler [Hunter] (22) Relay Coupler [Hunter] (17) Neutron Cannon Guided Plasma Cannon Hardcell Cannon Hardcell Cannon Improved Remote Datajack Makeshift Hammer Peak State ------------ Power Improved Deuterium Engine Backup Power VII Propulsion Gravmag Array Gravmag Array Utility Large Storage Unit Large Storage Unit High-capacity Storage Unit Advanced Terrain Scanner Improved Terrain Scan Processor Advanced Targeting Computer Transmission Jammer Advanced Hacking Suite Weapon KE Penetrator Mass Driver Mass Driver Inventory Light Ion Engine Advanced Heat Sink Large Matter Pod Long-range Sensor Array Layered Medium Armor Plating Layered Medium Armor Plating Improved Focal Shield Force Field Relay Coupler [NC] Relay Coupler [Swarmer] Relay Coupler [Swarmer] Relay Coupler [Grunt] Relay Coupler [Brawler] Relay Coupler [Sentry] Relay Coupler [Sentry] Relay Coupler [Hunter] Relay Coupler [Hunter] System Restoration Module Guided Plasma Cannon Advanced EMP Blaster Proton Missile Launcher Grenade Launcher Improved Remote Datajack Axe [Rating: 79] Favorites ----------- Power Mini Fusion Reactor Engine Improved Deuterium Engine Power Core Light Nuclear Core Reactor Mini Fusion Reactor Propulsion Armored Treads Treads Armored Treads Leg Aluminum Leg Wheel Armored Wheel Hover Unit Gravmag Array Flight Unit Improved Flight Unit Utility Large Storage Unit Device Transmission Jammer Storage Large Storage Unit Processor Advanced Targeting Computer Hackware Advanced Hacking Suite Protection Improved Light Armor Plating Weapon Plasma Cannon Energy Gun Improved EM Shotgun Energy Cannon Plasma Cannon Ballistic Gun Gauss Rifle Ballistic Cannon Mass Driver Launcher Advanced EMP Blaster Special Weapon Mining Laser Slashing Weapon Katana Build | -11 -10 -10 -10 -9 -8 -8 -8 -7 -6 -6 -5 -5 -5 -5 -4 ------- Run | Scr Mat Min Exi Min Mat Gar Sto Fac Fac Gar Fac Upp Upp War Pro Slots Evolved 10 | . . . . . 4 . . 2 2 . 2 . . . . Power 1 | . . . . . . . . . . . 1 . . . . Propulsion 2 | . . . . . . . . . 1 . 1 . . . . Utility 6 | . . . . . 4 . . 1 1 . . . . . . Weapon 1 | . . . . . . . . 1 . . . . . . . Parts Attached 195 | 4 . 1 2 5 22 15 25 26 7 11 28 8 . 34 7 Power 24 | 1 . . . 1 1 2 5 2 . 1 4 . . 6 1 Engine 15 | 1 . . . 1 1 1 2 1 . 1 4 . . 3 . Core 6 | . . . . . . 1 2 . . . . . . 2 1 Reactor 3 | . . . . . . . 1 1 . . . . . 1 . Propulsion 28 | . . . . 1 3 . 4 1 5 1 4 . . 8 1 Treads 7 | . . . . . . . 2 . . . . . . 5 . Leg 7 | . . . . 1 . . 2 . 1 . . . . 2 1 Wheel 6 | . . . . . 3 . . 1 . 1 . . . 1 . Hover 5 | . . . . . . . . . 2 . 3 . . . . Flight 3 | . . . . . . . . . 2 . 1 . . . . Utility 73 | 3 . . 2 . 14 3 9 7 1 6 10 6 . 8 4 Device 38 | 1 . . . . 8 1 6 3 . 1 8 6 . 2 2 Storage 9 | . . . 2 . 2 1 1 1 . 1 . . . . 1 Processor 6 | 2 . . . . 2 . . . 1 . 1 . . . . Hackware 2 | . . . . . . . . . . . 1 . . 1 . Protection 18 | . . . . . 2 1 2 3 . 4 . . . 5 1 Artifact . | . . . . . . . . . . . . . . . . Weapon 70 | . . 1 . 3 4 10 7 16 1 3 10 2 . 12 1 Energy Gun 6 | . . . . . 1 1 . 4 . . . . . . . Energy Cannon 18 | . . . . 1 3 5 5 2 . . 2 . . . . Ballistic Gun 13 | . . . . 2 . . 1 3 . 3 1 . . 3 . Ballistic Cannon 12 | . . . . . . 2 . 1 . . 6 . . 2 1 Launcher 9 | . . . . . . 2 1 . . . . 2 . 4 . Special Weapon 3 | . . 1 . . . . . . . . . . . 2 . Impact Weapon . | . . . . . . . . . . . . . . . . Slashing Weapon 9 | . . . . . . . . 6 1 . 1 . . 1 . Piercing Weapon . | . . . . . . . . . . . . . . . . Special Melee Weapon . | . . . . . . . . . . . . . . . . Unidentified Prototypes 11 | . . . . . 1 . 3 3 3 . 1 . . . . Parts Lost 58 | . . 3 . . . . 3 . . 9 2 2 . 32 7 Power 11 | . . 1 . . . . . . . 1 1 . . 8 . Propulsion 11 | . . . . . . . . . . . 1 . . 7 3 Utility 21 | . . 2 . . . . 2 . . 4 . 2 . 10 1 Weapon 15 | . . . . . . . 1 . . 4 . . . 7 3 Highest Loss Streak 17 | . . 3 . . . . 3 . . 7 1 1 . 17 7 Average Slot Usage (%) 86 | . 100 83 71 75 97 90 89 85 76 92 87 87 88 67 80 Engine 3 | . 14 8 . 4 9 2 6 . . . 5 11 11 3 . Core 1 | . . . . . . 6 1 . . . . . . 1 3 Reactor 1 | . . . . . . . . 7 6 4 . . . . . Treads 3 | . . . . . . . 14 4 . . . . . 7 4 Leg 4 | . 28 28 28 28 13 . . . 2 1 . . . . 4 Wheel 6 | . . . . . 3 18 3 5 6 11 9 . . . 4 Hover 1 | . . . . . . . . . 1 . 1 11 11 3 . Device 14 | . 14 8 . . 21 10 18 19 20 18 14 12 17 7 8 Storage 18 | . . . 14 14 18 18 18 23 20 20 17 17 17 17 22 Processor 5 | . 14 8 . . 8 9 3 . 3 6 9 8 5 5 5 Protection 3 | . . . . . 4 8 3 2 . 6 1 . . 1 . Energy Cannon 8 | . . . . 6 17 13 17 12 6 5 1 . . . . Ballistic Gun 5 | . 28 22 14 20 . . . 3 6 13 8 5 5 2 4 Ballistic Cannon 1 | . . . . . . 2 . . . . 5 5 . 1 7 Naked Turns . | . . . . . . . . . . . . . . . . Heaviest Build 152 | 13 10 10 83 94 62 122 135 152 151 152 110 110 108 113 103 Greatest Support 112 | 20 20 20 20 30 32 28 40 40 28 40 56 56 56 112 10 Greatest Overweight (x) 49 | . . . 4 4 3 4 7 5 49 5 7 1 1 28 29 Average Overweight (x) 2 | . . . . 2 1 3 3 4 5 2 1 1 1 3 8 Largest Inventory Capacity 38 | 6 4 4 24 24 36 36 36 38 38 38 24 24 24 24 24 Average Capacity 26 | 5 4 4 12 24 16 29 30 36 38 24 24 24 24 24 24 Most Carried 38 | 6 4 4 10 14 16 30 36 37 38 36 24 24 24 24 19 Average Carried 24 | 3 3 4 6 11 15 25 29 36 36 24 23 23 22 20 13 Final Capacity 38 | 4 4 4 24 24 16 30 36 38 38 24 24 24 24 24 24 Final Carried 37 | 3 4 4 9 14 16 30 36 37 36 23 24 22 23 13 18 Class Distribution -------------------- 37% | Hauler-Mutant 19% | Hauler-Skirmisher 9% | Bothacker-Mutant 6% | Bothacker-Gunner 6% | Mutant 6% | Hauler-Assassin 6% | Skirmisher 3% | Bothacker-Skirmisher Dominant Class ---------------- Mutant | -10/Materials Mutant | -10/Mines Mutant | -10/Exiles Hauler-Mutant | -9/Mines Skirmisher | -8/Materials Hauler-Mutant | -8/Garrison Hauler-Mutant | -8/Storage Hauler-Skirmisher | -7/Factory Hauler-Assassin | -6/Factory Hauler-Skirmisher | -6/Garrison Hauler-Skirmisher | -5/Factory Bothacker-Gunner | -5/Upper Caves Bothacker-Gunner | -5/Upper Caves Bothacker-Mutant | -5/Warlord Bothacker-Mutant | -4/Proximity Caves Resources | -11 -10 -10 -10 -9 -8 -8 -8 -7 -6 -6 -5 -5 -5 -5 -4 ----------- Run | Scr Mat Min Exi Min Mat Gar Sto Fac Fac Gar Fac Upp Upp War Pro Matter Collected 3760 | 294 . . . 224 . 572 301 307 . 437 345 559 14 592 115 Remotely . | . . . . . . . . . . . . . . . . Salvage Created 4361 | 168 . . . 114 . 447 719 412 . 662 222 532 . 1085 . Parts 208 | 16 . . . 6 . 30 39 21 . 28 13 25 . 30 . Haulers Intercepted 3 | . . . . . . . 2 . . . 1 . . . . Recyclers Shooed 1 | . . . . . . . . 1 . . . . . . . Parts Field Recycled . | . . . . . . . . . . . . . . . . Retrieved Matter . | . . . . . . . . . . . . . . . . Parts Self-Destructed 16 | . . . . . . . . . . . . 6 . 10 . Prevented 43 | . . . . . . . . . . . . 14 . 29 . Kills | -11 -10 -10 -10 -9 -8 -8 -8 -7 -6 -6 -5 -5 -5 -5 -4 ------- Run | Scr Mat Min Exi Min Mat Gar Sto Fac Fac Gar Fac Upp Upp War Pro Combat Hostiles Destroyed 92 | . . . . 10 . 20 10 7 . 7 3 11 . 24 . Guns 17 | . . . . 3 . 3 . 1 . 6 2 . . 2 . Cannons 42 | . . . . 7 . 13 10 6 . 1 1 1 . 3 . AOE 24 | . . . . . . 3 . . . . . 9 . 12 . Classes Destroyed 16 | 2 . . . 2 . 2 1 4 . 1 1 . . 3 . Worker 1 | . . . . . . . . . . . 1 . . . . Tunneler 5 | 5 . . . . . . . . . . . . . . . Hauler 3 | . . . . . . . 2 . . . 1 . . . . Recycler 2 | 1 . . . . . . 1 . . . . . . . . Operator 1 | . . . . . . . . 1 . . . . . . . Watcher 1 | . . . . . . . . 1 . . . . . . . Swarmer 23 | . . . . 3 . 13 . . . . . 4 . 3 . Grunt 33 | . . . . . . 5 7 1 . . . 5 . 15 . Brawler 2 | . . . . . . . . . . . . . . 2 . Duelist 1 | . . . . . . . . . . . . . . 1 . Sentry 11 | . . . . . . 2 3 3 . 2 1 . . . . Hunter 8 | . . . . . . . . 1 . 4 . 2 . 1 . Programmer 4 | . . . . . . . . 2 . . 2 . . . . Behemoth 1 | . . . . . . . . . . 1 . . . . . Demented 1 | . . . . . . . . . . . . . . 1 . Assembled 7 | . . . . 7 . . . . . . . . . . . Marauder 2 | . . . . . . . . . . . . . . 2 . Best Kill Streak 10 | 4 . . . 3 . 4 2 1 . 2 3 6 . 10 . Combat Bots Only 10 | . . . . 3 . 4 2 1 . 2 1 6 . 10 . Max Kills in Single Turn 3 | 1 . . . 1 . 2 1 1 . 1 1 2 . 3 . Gunslinging . | . . . . . . . . . . . . . . . . Exploded 3 | . . . . . . 2 . . . . . 2 . 3 . Melee . | . . . . . . . . . . . . . . . . Uniques/NPCs Destroyed . | . . . . . . . . . . . . . . . . Combat | -11 -10 -10 -10 -9 -8 -8 -8 -7 -6 -6 -5 -5 -5 -5 -4 -------- Run | Scr Mat Min Exi Min Mat Gar Sto Fac Fac Gar Fac Upp Upp War Pro Damage Taken 9427 | . . 308 . 357 . 337 695 412 . 833 737 343 . 4591 814 Core 1375 | . . 82 . 38 . 27 152 32 . 42 44 64 . 730 164 Absorbed by Shields 58 | . . . . . . 17 . . . . . . . 41 . Core Remaining (%) 81 | 100 . . . 52 . . 67 95 . 95 . . . . . Volleys Fired 297 | 9 . 3 . 25 5 68 48 28 . 36 21 13 . 40 1 Largest 3 | 2 . 1 . 2 2 2 2 3 . 3 3 3 . 3 3 Hottest 221 | 40 . 100 . 120 160 160 160 221 . 133 147 147 . 120 147 Shots Fired 558 | 18 . 3 . 29 10 96 68 72 . 106 54 25 . 74 3 Gun 191 | 18 . . . 15 . 8 . 15 . 72 25 5 . 32 1 Cannon 326 | . . . . 14 10 80 68 57 . 34 29 6 . 26 2 Launcher 37 | . . . . . . 8 . . . . . 14 . 15 . Special 4 | . . 3 . . . . . . . . . . . 1 . Kinetic 256 | 18 . . . 15 . 11 . 15 . 72 53 11 . 58 3 Thermal 255 | . . 3 . 14 10 69 68 57 . 34 . . . . . Explosive 14 | . . . . . . 8 . . . . . . . 6 . Electromagnetic 32 | . . . . . . 8 . . . . 1 14 . 9 . Robot Hit Streak 35 | 4 . . . 19 . 19 25 35 . 21 15 10 . 17 20 Robot Miss Streak 2 | 1 . . . 1 . 2 . 1 . 1 2 2 . 2 . Penetration Max 1 | . . . . . . . . . . 1 1 . . . . Secondary Targets 1 | . . . . 1 . . . . . . . . . . . Max Gunslinging Chain 1 | . . . . 1 . . . . . . . . . . . Shots Hit Robots 321 | 10 . . . 22 . 39 23 44 . 77 35 16 . 52 3 Core Hits 223 | 7 . . . 11 . 27 17 21 . 34 12 20 . 73 1 Critical Hits 7 | . . . . . . . . . . 2 3 . . 2 . Critical Kills 2 | . . . . . . . . . . . 1 . . 1 . Critical Parts Destroyed 5 | . . . . . . . . . . 2 2 . . 1 . Melee Attacks 32 | . . . . . . . . 28 1 1 2 . . . . Impact . | . . . . . . . . . . . . . . . . Slashing 32 | . . . . . . . . 28 1 1 2 . . . . Piercing . | . . . . . . . . . . . . . . . . Sneak Attacks 1 | . . . . . . . . 1 . . . . . . . Combat Hostiles . | . . . . . . . . . . . . . . . . Follow-up Attacks . | . . . . . . . . . . . . . . . . Damage Inflicted 12301 | 176 . . . 546 24 1494 1079 1105 . 1510 1265 1273 . 3729 100 Guns 2492 | 176 . . . 125 . 85 . 194 . 766 470 54 . 597 25 Cannons 5628 | . . . . 421 24 1220 1079 806 . 744 795 26 . 438 75 Explosions 4076 | . . . . . . 189 . . . . . 1193 . 2694 . Melee 85 | . . . . . . . . 85 . . . . . . . Ramming 20 | . . . . . . . . 20 . . . . . . . Kinetic 3843 | 176 . . . 125 . 94 . 202 . 766 1265 80 . 1035 100 Thermal 4712 | . . . . 421 24 1183 1079 798 . 744 . 129 . 334 . Explosive 1648 | . . . . . . 132 . . . . . . . 1516 . Electromagnetic 1993 | . . . . . . 85 . . . . . 1064 . 844 . Impact . | . . . . . . . . . . . . . . . . Slashing 85 | . . . . . . . . 85 . . . . . . . Piercing . | . . . . . . . . . . . . . . . . Highest Corruption 14 | . . 7 7 7 1 . 8 1 1 1 1 1 . 10 14 Average Corruption 3 | . . 7 7 7 1 . 3 1 1 1 1 1 . 4 10 Corruption Purged 8 | . . . . . 1 . 5 . . 1 . 1 . . . Effects 108 | . . 4 12 23 . . 37 3 1 4 1 . . 5 18 Message Errors 36 | . . 3 2 12 . . 10 3 1 3 . . . . 2 Matter Fused 29 | . . 1 5 6 . . 10 . . . . . . 1 6 Heat Flow Errors 10 | . . . . 2 . . 3 . . . . . . 1 4 Energy Discharges 12 | . . . 3 1 . . 5 . . . . . . 1 2 Data Loss (minor) 8 | . . . 1 . . . 5 . . 1 . . . . 1 Data Loss (major) 3 | . . . 1 . . . . . . . . . . 1 1 Misfires 2 | . . . . . . . 2 . . . . . . . . Misdirections 2 | . . . . . . . . . . . . . . . 2 Targeting Errors 5 | . . . . 2 . . 2 . . . 1 . . . . Weapon Failures 1 | . . . . . . . . . . . . . . 1 . Overload Shots . | . . . . . . . . . . . . . . . . Overflow Damage 278 | . . . . 40 . 99 5 69 . . 56 . . 9 . Projectiles 224 | . . . . 40 . 99 5 24 . . 56 . . . . Explosions 9 | . . . . . . . . . . . . . . 9 . Melee 45 | . . . . . . . . 45 . . . . . . . Knockbacks 16 | . . . . . . 3 . 1 . . 8 . . 4 . Impact . | . . . . . . . . . . . . . . . . Kinetic 16 | . . . . . . 3 . 1 . . 8 . . 4 . Secondary . | . . . . . . . . . . . . . . . . Self-Inflicted Damage 153 | . . . . . . . . 10 . . . 42 . 101 . Shots 8 | . . . . . . . . . . . . 2 . 6 . Rammed 1 | . . . . . . . . 1 . . . . . . . Targets Rammed 1 | . . . . . . . . 1 . . . . . . . Kicked . | . . . . . . . . . . . . . . . . Crushed . | . . . . . . . . . . . . . . . . Highest Temperature 538 | . . 20 . 249 150 463 538 315 . 192 442 221 . 444 194 Average Temperature 125 | . . 11 . 93 56 140 122 112 . 69 150 75 . 238 103 Received Heat Transfer 1200 | . . . . . . 102 45 138 . 48 18 36 . 774 39 Effects 26 | . . . . . . 7 8 1 . . . . . 10 . Shutdowns 6 | . . . . . . 3 1 . . . . . . 2 . Energy Bleed 5 | . . . . . . 3 1 1 . . . . . . . Interference 7 | . . . . . . . 4 . . . . . . 3 . Matter Decay 1 | . . . . . . . . . . . . . . 1 . Short Circuit 3 | . . . . . . 1 1 . . . . . . 1 . Damage (minor) 1 | . . . . . . . 1 . . . . . . . . Damage (major) 3 | . . . . . . . . . . . . . . 3 . Siege Activations . | . . . . . . . . . . . . . . . . Robots Corrupted 8 | . . . . . . . . . . . . 1 . 7 . Combat Hostiles 8 | . . . . . . . . . . . . 1 . 7 . Parts Fried 18 | . . . . . . . . . . . . 5 . 13 . Impact Corruptions . | . . . . . . . . . . . . . . . . Robots Melted . | . . . . . . . . . . . . . . . . Combat Hostiles . | . . . . . . . . . . . . . . . . Parts Melted 17 | . . . . . . 1 5 7 . 4 . . . . . Heat Transferred 9247 | . . . . 960 50 2490 2310 1511 . 1450 . 150 . 326 . Parts Sabotaged . | . . . . . . . . . . . . . . . . Parts Stolen . | . . . . . . . . . . . . . . . . Parts Stripped . | . . . . . . . . . . . . . . . . Power Chain Reactions 8 | . . . . . . 1 . . . . . 3 . 4 . Missiles Intercepted . | . . . . . . . . . . . . . . . . Alert | -11 -10 -10 -10 -9 -8 -8 -8 -7 -6 -6 -5 -5 -5 -5 -4 ------- Run | Scr Mat Min Exi Min Mat Gar Sto Fac Fac Gar Fac Upp Upp War Pro Peak Influence 699 | 30 31 9 . 70 20 699 460 172 24 258 134 . . . . Average Influence 135 | 17 21 5 . 38 2 383 170 55 23 150 56 . . . . Maximum Alert Level 2 | . . . . . . 2 2 . . 1 . . . . . Low Security (%) 77 | . . . . . . . . . . . . . . . . Level 1 15 | . . . . . . . . . . . . . . . . Level 2 7 | . . . . . . . . . . . . . . . . Level 3 . | . . . . . . . . . . . . . . . . Level 4 . | . . . . . . . . . . . . . . . . Level 5 . | . . . . . . . . . . . . . . . . High Security . | . . . . . . . . . . . . . . . . Max Security . | . . . . . . . . . . . . . . . . Squads Dispatched 15 | . . . . . 1 . 5 6 . . 3 . . . . Investigation 5 | . . . . . . . . 4 . . 1 . . . . Extermination 4 | . . . . . . . . 2 . . 2 . . . . Reinforcement 6 | . . . . . 1 . 5 . . . . . . . . Assault . | . . . . . . . . . . . . . . . . Garrison . | . . . . . . . . . . . . . . . . Intercept . | . . . . . . . . . . . . . . . . Construction Impeded . | . . . . . . . . . . . . . . . . Haulers Reinforced . | . . . . . . . . . . . . . . . . Alert ID Control Effect 1 | . . . . . . . . . . . . . . 1 . Stealth | -11 -10 -10 -10 -9 -8 -8 -8 -7 -6 -6 -5 -5 -5 -5 -4 --------- Run | Scr Mat Min Exi Min Mat Gar Sto Fac Fac Gar Fac Upp Upp War Pro Distress Signals 7 | . . . . . 1 . 4 . . . . 1 . 1 . Communications Jammed 16 | . . . . . . . 1 15 . . . . . . . Distress Signals 16 | . . . . . . . 1 15 . . . . . . . Times Spotted 173 | . 3 . . 13 3 20 25 22 . 7 9 14 . 52 5 Peak Tracking Total 12 | . 3 . . 7 3 4 5 3 . 2 2 5 . 12 5 Tactical Retreats 20 | . . . . 1 1 5 . 1 . . 1 2 . 8 1 Traps | -11 -10 -10 -10 -9 -8 -8 -8 -7 -6 -6 -5 -5 -5 -5 -4 ------- Run | Scr Mat Min Exi Min Mat Gar Sto Fac Fac Gar Fac Upp Upp War Pro Traps Triggered 19 | . . . . . 1 5 4 2 3 3 1 . . . . Indirectly . | . . . . . . . . . . . . . . . . Trap Hack Attempts . | . . . . . . . . . . . . . . . . Triggered . | . . . . . . . . . . . . . . . . Disarmed . | . . . . . . . . . . . . . . . . Reprogrammed . | . . . . . . . . . . . . . . . . Reused . | . . . . . . . . . . . . . . . . Traps Extracted . | . . . . . . . . . . . . . . . . Installed . | . . . . . . . . . . . . . . . . Triggered 1 | . . . . . . . 1 . . . . . . . . Exploded 2 | . . . . . . 2 . . . . . . . . . Machines | -11 -10 -10 -10 -9 -8 -8 -8 -7 -6 -6 -5 -5 -5 -5 -4 ---------- Run | Scr Mat Min Exi Min Mat Gar Sto Fac Fac Gar Fac Upp Upp War Pro Machines Disabled 19 | . . . . . . 9 6 . . 3 1 . . . . Max in Single Turn 1 | . . . . . . 1 1 . . 1 1 . . . . Garrison Access 2 | . . . . . . . 1 1 . . . . . . . Garrison Relay 5 | . . . . . . 4 . . . 1 . . . . . Machines Sabotaged . | . . . . . . . . . . . . . . . . Garrisons Compromised . | . . . . . . . . . . . . . . . . Overloaded Fab Kills . | . . . . . . . . . . . . . . . . Fab Network Shutdowns . | . . . . . . . . . . . . . . . . Hacking | -11 -10 -10 -10 -9 -8 -8 -8 -7 -6 -6 -5 -5 -5 -5 -4 --------- Run | Scr Mat Min Exi Min Mat Gar Sto Fac Fac Gar Fac Upp Upp War Pro Machines Accessed 36 | . 1 . 1 . 6 . 10 10 1 . 6 . . . 1 Terminals 21 | . 1 . . . 4 . 8 4 . . 3 . . . 1 Fabricators 2 | . . . . . . . . 1 . . 1 . . . . Repair Stations 3 | . . . . . . . 1 1 . . 1 . . . . Recycling Units 2 | . . . . . . . . 1 . . 1 . . . . Scanalyzers 3 | . . . . . 1 . . 2 . . . . . . . Garrison Access 4 | . . . . . 1 . 1 1 1 . . . . . . Total Hacks 84 | . 2 . 1 . 18 . 18 29 1 . 14 . . . 1 Successful 48 | . 2 . 1 . 10 . 15 12 1 . 6 . . . 1 Failed 36 | . . . . . 8 . 3 17 . . 8 . . . . Catastrophic 9 | . . . . . 1 . 1 6 . . 1 . . . . Database Lockouts . | . . . . . . . . . . . . . . . . Manual 42 | . 2 . 1 . 10 . 10 13 . . 6 . . . . Terminals 53 | . 2 . . . 14 . 15 15 . . 6 . . . 1 Fabricators 6 | . . . . . . . . 3 . . 3 . . . . Repair Stations 7 | . . . . . . . 2 2 . . 3 . . . . Recycling Units 3 | . . . . . . . . 1 . . 2 . . . . Scanalyzers 10 | . . . . . 3 . . 7 . . . . . . . Garrison Access 4 | . . . . . 1 . 1 1 1 . . . . . . Terminal Hacks 13 | . 1 . 1 . 3 . 5 2 . . . . . . 1 Record 2 | . . . . . . . . 1 . . . . . . 1 Part Schematic 1 | . . . . . 1 . . . . . . . . . . Robot Schematic 1 | . . . . . . . 1 . . . . . . . . Robot Analysis 2 | . . . . . 2 . . . . . . . . . . Open Door 2 | . . . . . . . 2 . . . . . . . . Branch Access Points 2 | . 1 . . . . . 1 . . . . . . . . Locate Traps 1 | . . . . . . . 1 . . . . . . . . Extermination Status 1 | . . . . . . . . 1 . . . . . . . EX-Prototype ID Bank 1 | . . . 1 . . . . . . . . . . . . Fabricator Hacks 3 | . . . . . . . . 1 . . 2 . . . . Load Schematic 1 | . . . . . . . . . . . 1 . . . . Build 2 | . . . . . . . . 1 . . 1 . . . . Repair Station Hacks 5 | . . . . . . . 2 2 . . 1 . . . . Scan Component 2 | . . . . . . . 1 1 . . . . . . . Repair 2 | . . . . . . . 1 1 . . . . . . . Refit 1 | . . . . . . . . . . . 1 . . . . Recycling Unit Hacks 2 | . . . . . . . . 1 . . 1 . . . . Report Inventory 2 | . . . . . . . . 1 . . 1 . . . . Scanalyzer 4 | . . . . . 3 . . 1 . . . . . . . Insert Component 3 | . . . . . 2 . . 1 . . . . . . . Analyze 1 | . . . . . 1 . . . . . . . . . . Garrison Access Hacks 4 | . . . . . 1 . 1 1 1 . . . . . . Unlock Access 2 | . . . . . 1 . . . 1 . . . . . . Seal Access 2 | . . . . . . . 1 1 . . . . . . . Unauthorized Hacks 38 | . 2 . . . 6 . 15 9 . . 6 . . . . Terminals 17 | . 1 . . . 3 . 7 4 . . 2 . . . . Botnet 17 | . 1 . . . 3 . 7 4 . . 2 . . . . Fabricators . | . . . . . . . . . . . . . . . . Repair Stations . | . . . . . . . . . . . . . . . . Recycling Units . | . . . . . . . . . . . . . . . . Scanalyzers . | . . . . . . . . . . . . . . . . Garrison Access . | . . . . . . . . . . . . . . . . Data Cores Recovered 2 | . . . . . . . 1 1 . . . . . . . Used . | . . . . . . . . . . . . . . . . Hacking Detections 25 | . 1 . . . 4 . 5 8 1 . 6 . . . . Full Trace Events 6 | . . . . . 1 . . 4 . . 1 . . . . Feedback Events 1 | . . . . . 1 . . . . . . . . . . Corruption 1 | . . . . . 1 . . . . . . . . . . Feedback Blocked . | . . . . . . . . . . . . . . . . Robot Schematics Acquired 1 | . . . . . . . 1 . . . . . . . . Robots Built 3 | . . . . . . . . 3 . . . . . . . Matter 252 | . . . . . . . . 252 . . . . . . . Time 67 | . . . . . . . . 67 . . . . . . . Total Robot Build Rating 12 | . . . . . . . . 12 . . . . . . . Part Schematics Acquired 2 | . . . . . 2 . . . . . . . . . . Parts Built 1 | . . . . . . . . . . . 1 . . . . Matter 146 | . . . . . . . . . . . 146 . . . . Time 36 | . . . . . . . . . . . 36 . . . . Total Part Build Rating 3 | . . . . . . . . . . . 3 . . . . Parts Repaired 2 | . . . . . . . 1 1 . . . . . . . Time 72 | . . . . . . . 50 22 . . . . . . . Parts Recycled . | . . . . . . . . . . . . . . . . Recycled Matter . | . . . . . . . . . . . . . . . . Retrieved Matter . | . . . . . . . . . . . . . . . . Retrieved Components . | . . . . . . . . . . . . . . . . Parts Scanalyzed 2 | . . . . . 1 . . 1 . . . . . . . Part Schematics Acquired 1 | . . . . . 1 . . . . . . . . . . Parts Damaged . | . . . . . . . . . . . . . . . . Bothacking | -11 -10 -10 -10 -9 -8 -8 -8 -7 -6 -6 -5 -5 -5 -5 -4 ------------ Run | Scr Mat Min Exi Min Mat Gar Sto Fac Fac Gar Fac Upp Upp War Pro Used RIF Installer 2 | . . . . . . 1 . . . 1 . . . . . Alert ID Control 1 | . . . . . . . . . . 1 . . . . . Robots Hacked 1 | . . . . . . . . . . . . . . 1 . Non-combat . | . . . . . . . . . . . . . . . . Combat 1 | . . . . . . . . . . . . . . 1 . Robot Hacks Applied 1 | . . . . . . . . . . . . . . 1 . formatsys_high 1 | . . . . . . . . . . . . . . 1 . Relay Couplers Released 18 | . . . . . . 14 . . . 4 . . . . . Machine Destruction 18 | . . . . . . 14 . . . 4 . . . . . Attached 1 | . . . . . . . . . . . . . . 1 . Robots Rewired . | . . . . . . . . . . . . . . . . Allies Hacked . | . . . . . . . . . . . . . . . . Hacks Repelled . | . . . . . . . . . . . . . . . . Allies | -11 -10 -10 -10 -9 -8 -8 -8 -7 -6 -6 -5 -5 -5 -5 -4 -------- Run | Scr Mat Min Exi Min Mat Gar Sto Fac Fac Gar Fac Upp Upp War Pro Total Allies 7 | . . . . 2 . . 1 3 . . . . . 1 . Largest Group 3 | . . . . 2 2 . 1 3 . . . . . 1 . Highest-Rated Group 99 | . . . . 46 46 . 99 90 . . . . . 29 . Highest-Rated Ally 99 | . . . . 31 31 . 99 30 . . . . . 29 . Total Orders 6 | . . . . . . . 4 . . . 2 . . . . ROAM 4 | . . . . . . . 2 . . . 2 . . . . FOLLOW 1 | . . . . . . . 1 . . . . . . . . RETURN 1 | . . . . . . . 1 . . . . . . . . Ally Attacks 57 | . . . . 4 8 . 22 21 . . . . . 2 . Total Damage 1806 | . . . . 64 128 . 1145 430 . . . . . 39 . Kills 20 | . . . . 2 1 . 12 4 . . . . . 1 . Allies Corrupted . | . . . . . . . . . . . . . . . . Allies Melted . | . . . . . . . . . . . . . . . . Intel | -11 -10 -10 -10 -9 -8 -8 -8 -7 -6 -6 -5 -5 -5 -5 -4 ------- Run | Scr Mat Min Exi Min Mat Gar Sto Fac Fac Gar Fac Upp Upp War Pro Robot Analysis Total 2 | . . . . . 2 . . . . . . . . . . Derelict Logs Recovered 3 | . . 1 . . . . . . . . . . 1 . 1 Drone Launches 5 | . . . . . . . 3 . . . 2 . . . . Drone Recoveries 1 | . . . . . . . 1 . . . . . . . . Exploration | -11 -10 -10 -10 -9 -8 -8 -8 -7 -6 -6 -5 -5 -5 -5 -4 ------------- Run | Scr Mat Min Exi Min Mat Gar Sto Fac Fac Gar Fac Upp Upp War Pro Turns Passed 13423 | 97 99 276 388 639 820 1795 2248 2340 142 1106 1335 541 352 707 538 Spaces Moved 6626 | 43 79 219 282 270 325 823 642 1197 69 521 904 404 318 227 303 Core 19 | . . . . . . . . . 1 . . . . 16 2 Treads 767 | . . . . . . . 455 261 . . . . . 51 . Legs 1170 | 43 79 219 282 270 257 . 5 . . . . . . 15 . Wheels 3708 | . . . . . 68 823 182 936 68 521 799 . . 10 301 Hover 962 | . . . . . . . . . . . 105 404 318 135 . Flight . | . . . . . . . . . . . . . . . . Fastest Speed 105 | 120 120 120 120 190 105 105 135 140 150 115 106 106 106 106 160 Average Speed 147 | 120 120 120 132 207 156 133 203 164 184 118 114 106 106 219 174 Slowest Speed 2500 | 120 120 120 240 240 190 135 340 230 2500 150 215 106 106 1450 1500 Overloaded Moves . | . . . . . . . . . . . . . . . . Propulsion Burnouts . | . . . . . . . . . . . . . . . . Robots Hopped . | . . . . . . . . . . . . . . . . Cave-ins Triggered 4 | . . 1 . . . . 2 . . . . . . 1 . Exploration Rate (%) 42 | 3 30 59 69 57 24 80 72 25 2 57 30 50 61 23 45 Regions Visited 15 Branch Regions 8 Pre-discovered Areas . | . . . . . . . . . . . . . . . . Known Exits Taken 4 | . 1 . 1 . 1 . . . 1 . . . . . . Unknown Exits Taken 9 | 1 . 1 . 1 . . 1 1 . . 1 1 1 1 . Scrap Searched 11 | . . 2 . . . . . . . . . 3 3 . 3 Spaces Dug 67 | . . 3 . . 7 4 24 26 1 . 2 . . . . Terrain Destroyed 231 | . . 3 . 2 9 69 27 26 1 3 15 18 . 57 1 Melee 29 | . . . . . . . . 26 1 . 2 . . . . Projectile 84 | . . 3 . 2 9 5 27 . . 3 13 4 . 17 1 AOE 118 | . . . . . . 64 . . . . . 14 . 40 . Actions | -11 -10 -10 -10 -9 -8 -8 -8 -7 -6 -6 -5 -5 -5 -5 -4 --------- Run | Scr Mat Min Exi Min Mat Gar Sto Fac Fac Gar Fac Upp Upp War Pro Total 9747 | 71 85 222 297 320 627 1429 1519 1478 84 943 1165 492 333 362 320 Wait 2277 | 7 . . . 18 242 449 773 165 . 333 162 65 13 50 . Move 6611 | 42 78 218 281 269 325 822 639 1196 69 520 903 403 317 226 303 Hop . | . . . . . . . . . . . . . . . . Pick Up 130 | 3 4 . 13 3 11 23 16 13 1 11 16 . 2 5 9 Fast Attach 78 | 1 . . . 1 13 1 9 9 2 2 18 3 . 17 2 Attach 40 | . . . 2 . 3 2 3 2 4 3 2 1 . 14 4 Detach 14 | . . . . . 4 2 . . 4 . 2 . . 2 . Swap 77 | 3 . 1 . 4 6 12 13 15 1 6 8 4 . 3 1 Drop 124 | 6 3 . 1 . 18 11 16 21 2 6 31 3 1 5 . Fire 297 | 9 . 3 . 25 5 68 48 28 . 36 21 13 . 40 1 Melee 32 | . . . . . . . . 28 1 1 2 . . . . Ram 1 | . . . . . . . . 1 . . . . . . . Kick . | . . . . . . . . . . . . . . . . Crush . | . . . . . . . . . . . . . . . . Escape Stasis 65 | . . . . . . 39 2 . . 24 . . . . . Rewire 1 | . . . . . . . . . . 1 . . . . . Trap . | . . . . . . . . . . . . . . . . Miscellaneous . | . . . . . . . . . . . . . . . . Route ------- -11/Scrapyard -10/Materials (discovered 2 exits: *Min x2) -10/Mines -10/Exiles (discovered 2 exits: *Min x2) -9/Mines -8/Materials (discovered 3 exits: Fac / Sto / Gar) -8/Garrison (discovered 2 exits: *Sto x2) -8/Storage (discovered 2 exits: *Fac / Rec) -7/Factory (discovered 3 exits: *Fac x2 / [*Low]) -6/Factory -6/Garrison (discovered 2 exits: *Fac x2) -5/Factory (discovered 3 exits: [Fac] / [*Upp] / [Ext]) -5/Upper Caves -5/Upper Caves -5/Warlord -4/Proximity Caves History --------- Turn | Location | Event 11 | -11/Scrapyard | Discovered new exit (range 3) 98 | -11/Scrapyard | Entered Materials 119 | -10/Materials | Identified exit to Mines 197 | -10/Materials | Entered Mines 306 | -10/Mines | Build established: Mutant 367 | -10/Mines | Crushed by falling debris 398 | -10/Mines | Lost 3 parts (1p2u) 467 | -10/Mines | Deemed a non-threat by the Exiles lab entrance 468 | -10/Mines | Discovered new exit (range 5) 473 | -10/Mines | Entered Exiles 474 | -10/Exiles | Identified exit to Mines 507 | -10/Exiles | Met 8R-AWN 528 | -10/Exiles | Met EX-HEX 561 | -10/Exiles | Met EX-BIN 575 | -10/Exiles | Aligned with FarCom system 576 | -10/Exiles | Given EX-Vault access code 603 | -10/Exiles | Opened EX-Vault 626 | -10/Exiles | Found Gui. Plasma Cannon 653 | -10/Exiles | Exiles lab attacked by MAIN.C 861 | -10/Exiles | Left Exiles lab with Gui. Plasma Cannon 861 | -10/Exiles | Entered Mines 1056 | -9/Mines | Assembled infested the area 1097 | -9/Mines | Build established: Hauler-Mutant 1377 | -9/Mines | Discovered new exit (range 10) 1500 | -9/Mines | Entered Materials 1500 | -8/Materials | Accompanied by 2 allies 1500 | -8/Materials | Evolved 4 slots: Utility x4 1505 | -8/Materials | Led the pair of lost Derelicts to an unsafe place 1616 | -8/Materials | Discovered new exit (range 19) 1832 | -8/Materials | Build established: Skirmisher 2278 | -8/Materials | Discovered new exit (range 20) 2320 | -8/Materials | Identified exit to Garrison 2320 | -8/Materials | Entered Garrison 2326 | -8/Garrison | Installed Relay Interface Framework 2348 | -8/Garrison | Triggered checkpoint 2476 | -8/Garrison | Triggered checkpoint 2666 | -8/Garrison | Discovered new exit (range 9) 2697 | -8/Garrison | Triggered checkpoint 2716 | -8/Garrison | Build established: Hauler-Mutant 2791 | -8/Garrison | Garrison Relay disabled 2883 | -8/Garrison | Triggered checkpoint 2985 | -8/Garrison | Discovered new exit (range 12) 3123 | -8/Garrison | Triggered checkpoint 3217 | -8/Garrison | Garrison Relay disabled 3699 | -8/Garrison | Triggered checkpoint 3795 | -8/Garrison | Triggered checkpoint 3830 | -8/Garrison | Garrison Relay disabled 4115 | -8/Garrison | Entered Storage 4975 | -8/Storage | Identified exit to Recycling 5084 | -8/Storage | Crushed by falling debris 5090 | -8/Storage | Crushed by falling debris 5121 | -8/Storage | Lost 3 parts (2u1w) 5168 | -8/Storage | Repaired Lgt. Angular Momentum Engine 5834 | -8/Storage | Met 01-MTF 6169 | -8/Storage | Discovered new exit (range 14) 6363 | -8/Storage | Entered Factory 6363 | -7/Factory | Evolved 2 slots: Utility x1, Weapon x1 7194 | -7/Factory | Build established: Hauler-Assassin 7585 | -7/Factory | Discovered new exit (range 14) 7734 | -7/Factory | Fabricated L-41 Fighter (x3) 7891 | -7/Factory | P-60 Hacker assimilated allied Fighter 4c 7905 | -7/Factory | Build established: Hauler-Skirmisher 8242 | -7/Factory | Discovered new exit (range 13) 8444 | -7/Factory | Build established: Hauler-Assassin 8566 | -7/Factory | Repaired Plasma Cannon 8678 | -7/Factory | Discovered new exit (range 10) 8703 | -7/Factory | Entered another Factory area 8703 | -6/Factory | Evolved 2 slots: Propulsion x1, Utility x1 8845 | -6/Factory | Identified exit to Garrison 8845 | -6/Factory | Entered Garrison 8890 | -6/Garrison | Triggered checkpoint 8932 | -6/Garrison | Lost 7 parts (4u3w) 8984 | -6/Garrison | Garrison Relay disabled 9080 | -6/Garrison | Spotted B-75 Beast 9188 | -6/Garrison | Build established: Hauler-Skirmisher 9311 | -6/Garrison | Triggered checkpoint 9387 | -6/Garrison | Destroyed B-75 Beast 9432 | -6/Garrison | Triggered checkpoint 9572 | -6/Garrison | Discovered new exit (range 9) 9692 | -6/Garrison | Triggered checkpoint 9929 | -6/Garrison | Discovered new exit (range 10) 9946 | -6/Garrison | Expanded RIF knowledge: Alert ID Control 9951 | -6/Garrison | Entered Factory 9951 | -5/Factory | Evolved 2 slots: Power x1, Propulsion x1 10387 | -5/Factory | Discovered new exit (range 17) 10428 | -5/Factory | Discovered new exit (range 19) 10934 | -5/Factory | Fabricated Adv. Sensor Array (x1) 11211 | -5/Factory | Discovered new exit (range 8) 11286 | -5/Factory | Entered Upper Caves 11794 | -5/Upper Caves | Discovered new exit (range 10) 11827 | -5/Upper Caves | Entered another Upper Caves area 11939 | -5/Upper Caves | Build established: Bothacker-Gunner 12003 | -5/Upper Caves | Encountered a Warlord checkpoint 12088 | -5/Upper Caves | Learned Factory non-interactive machine intel 12143 | -5/Upper Caves | Discovered new exit (range 12) 12179 | -5/Upper Caves | Entered Warlord 12244 | -5/Warlord | Discovered new exit (range 14) 12323 | -5/Warlord | RIF detected upon attempting to enter Warlord's base 12323 | -5/Warlord | Attacked by Warlord forces 12335 | -5/Warlord | Spotted AQ-525(B) 12335 | -5/Warlord | Spotted J1-DZ8(B) 12413 | -5/Warlord | Lost 7 parts (3p2n2u) 12491 | -5/Warlord | Core integrity fell below 50% 12542 | -5/Warlord | Warlord's base attacked by MAIN.C 12562 | -5/Warlord | Destroyed AQ-525(B) 12567 | -5/Warlord | Destroyed J1-DZ8(B) 12575 | -5/Warlord | Build established: Bothacker-Mutant 12779 | -5/Warlord | Crushed by falling debris 12819 | -5/Warlord | Destroyed 10 combat bots 12825 | -5/Warlord | Lost 17 parts (3p2n6u6w) 12877 | -5/Warlord | Core integrity fell below 20% 12877 | -5/Warlord | System corruption reached 10% 12886 | -5/Warlord | Entered Proximity Caves 12913 | -4/Proximity Caves | Lost 5 parts (2p3n) 13081 | -4/Proximity Caves | Learned Research emergency access door positions 13424 | -4/Proximity Caves | Destroyed by P-70 Sage with Tesla Rifle Last Messages --------------- 13334_ System corrupted: Matter fused (-7). 13350_ System corrupted: Heat flow error (+200). 13362_ C-30 ARC bursts open, deploying its payload. 13362_ P-70 Sage unfolds itself. 13364_ Spk. Medium Treads destroyed. 13364_ Relay Coupler [Grunt] destroyed. 13366_ Slug penetrates P-70 Sage. 13369_ C-30 ARC bursts open, deploying its payload. 13369_ G-73 Enforcer unfolds itself. 13369_ G-67 Veteran unfolds itself. 13369_ Carbon-fiber Leg destroyed. 13375_ Acquired 22 matter. 13377_ Mass Driver destroyed. 13379_ System corrupted: Matter fused (-5). 13381_ Hvy. Battle Rifle destroyed. 13396_ System corrupted: Heat flow error (+241). 13407_ Wheel destroyed. 13413_ EI5L%ET>UVVZ MHY5GL